bitfinex/quotes_SOLUSD_20220119
["timestamp","ask_amount","ask_price","bid_price","bid_amount"]
[1642580704500,1.50095455,134.27,134.21,35.35387019]
[1642580704697,1.50095455,134.27,134.22,0.25]
[1642580705401,2.979,134.28,134.22,6.25]
[1642580705597,2.09875284,134.29,134.22,6.25]
[1642580705801,5.07775284,134.3,134.22,6.25]
[1642580705999,2.979,134.3,134.22,6.25]
[1642580706196,5.07775284,134.3,134.22,6.25]
[1642580706598,0.25,134.29,134.22,6.25]
[1642580706899,2.979,134.28,134.22,6.25]
[1642580707701,0.25,134.27,134.21,35.35387019]
[1642580708102,2.979,134.26,134.21,35.35387019]
[1642580708503,2.979,134.26,134.16,12.84074049]
[1642580708703,2.979,134.26,134.17,0.25]
[1642580708901,2.979,134.26,134.17,6.25]
[1642580708902,0.25,134.25,134.17,6.25]
[1642580709101,2.98,134.24,134.17,6.25]
[1642580709502,2.98,134.24,134.18,40.34011696]
[1642580710502,14.1583,134.24,134.19,0.25]
[1642580710902,11.1783,134.24,134.19,0.25]
[1642580711603,2.98,134.26,134.19,0.25]
[1642580711803,11.1775,134.25,134.19,0.25]
[1642580713709,2.98,134.24,134.19,0.25]
[1642580714007,14.1584,134.24,134.19,0.25]
[1642580714206,11.1784,134.24,134.19,0.25]
[1642580716908,49.52742671,134.24,134.19,0.25]
[1642580717108,2.98,134.23,134.18,40.34011696]
[1642580717310,11.1803,134.22,134.17,6.0]
[1642580717510,2.98,134.21,134.14,24.68794049]
[1642580717712,2.98,134.21,134.14,22.5872]
[1642580717910,2.981,134.22,134.15,6.0]
[1642580718209,0.25,134.21,134.13,2.10074049]
[1642580718412,2.981,134.2,134.15,46.18996463]
[1642580718611,11.1828,134.19,134.15,46.18996463]
[1642580720618,11.1828,134.19,134.14,0.25]
[1642580720816,2.981,134.18,134.12,2.10074049]
[1642580721016,3.231,134.18,134.12,2.10074049]
[1642580721217,11.1859,134.17,134.1,24.5398]
[1642580721617,2.982,134.16,134.11,42.92385217]
[1642580721816,49.45149856,134.17,134.11,42.92385217]
[1642580722217,2.982,134.17,134.11,42.92385217]
[1642580722619,11.1855,134.16,134.11,42.92385217]
[1642580722917,2.982,134.17,134.11,42.92385217]
[1642580723117,2.981,134.18,134.12,0.25]
[1642580723318,2.981,134.19,134.12,0.25]
[1642580723819,2.981,134.19,134.12,1.87707783]
[1642580724318,0.25,134.18,134.11,42.92385217]
[1642580724519,2.981,134.17,134.11,42.92385217]
[1642580724918,14.1655,134.17,134.11,42.92385217]
[1642580727823,0.25,134.16,134.11,42.92385217]
[1642580728030,2.982,134.15,134.11,42.92385217]
[1642580728823,11.4351,134.16,134.11,42.92385217]
[1642580729425,2.982,134.15,134.11,42.92385217]
[1642580730124,11.4351,134.16,134.11,44.55093]
[1642580730324,11.1851,134.16,134.11,44.55093]
[1642580730525,11.1851,134.16,134.11,42.92385217]
[1642580730924,2.982,134.15,134.11,42.92385217]
[1642580731224,11.1841,134.17,134.12,0.25]
[1642580732326,2.981,134.16,134.11,42.92385217]
[1642580732528,14.4162,134.16,134.11,42.92385217]
[1642580732726,11.4352,134.16,134.11,42.92385217]
[1642580732926,2.982,134.15,134.11,42.92385217]
[1642580733629,14.1679,134.15,134.09,24.4908]
[1642580733826,14.1679,134.15,134.1,6.25]
[1642580734531,0.25,134.14,134.07,2.12074049]
[1642580734728,0.25,134.14,134.07,0.02]
[1642580734729,11.1897,134.12,134.07,0.02]
[1642580734927,2.982,134.11,134.07,0.02]
[1642580735227,10.74,134.16,134.07,138.05]
[1642580735427,2.983,134.14,134.07,139.67648367]
[1642580735627,10.74,134.18,134.07,139.67648367]
[1642580735829,2.982,134.17,134.08,24.872]
[1642580736028,2.982,134.17,134.09,74.03]
[1642580736228,11.1841,134.17,134.1,0.25]
[1642580736428,2.982,134.16,134.1,0.25]
[1642580736731,11.1841,134.17,134.1,0.25]
[1642580738033,2.982,134.19,134.1,0.25]
[1642580738233,14.1652,134.19,134.1,23.1025]
[1642580739034,14.1652,134.19,134.1,97.1325]
[1642580740540,14.1652,134.19,134.1,108.315]
[1642580741236,14.1652,134.19,134.1,108.065]
[1642580741437,11.4336,134.18,134.1,96.8825]
[1642580741638,2.981,134.17,134.1,96.8825]
[1642580742736,2.981,134.17,134.12,1.0093242]
[1642580742937,2.981,134.17,134.13,38.77505234]
[1642580744366,14.1652,134.17,134.13,38.77505234]
[1642580744568,11.1842,134.17,134.12,1.0093242]
[1642580745169,2.981,134.16,134.12,1.0093242]
[1642580745583,37.61152349,134.16,134.12,1.0093242]
[1642580745770,14.4183,134.15,134.12,1.0093242]
[1642580745972,6.06439994,134.14,134.12,1.0093242]
[1642580746170,2.982,134.13,134.12,1.0093242]
[1642580747473,20.23359994,134.14,134.1,36.89145849]
[1642580748970,17.25159994,134.14,134.1,36.89145849]
[1642580752273,14.1696,134.13,134.1,36.89145849]
[1642580752472,11.1876,134.13,134.1,36.89145849]
[1642580752675,11.1876,134.13,134.12,1.0093242]
[1642580753073,2.982,134.16,134.12,1.0093242]
[1642580753373,11.4366,134.15,134.13,38.98959606]
[1642580753575,11.1866,134.15,134.13,38.98959606]
[1642580754174,3.03219997,134.14,134.13,38.98959606]
[1642580754773,11.1851,134.16,134.13,38.98959606]
[1642580755475,3.03219997,134.15,134.13,38.98959606]
[1642580755874,14.21819997,134.15,134.12,1.0093242]
[1642580756275,3.28219997,134.14,134.12,1.0093242]
[1642580756476,2.982,134.13,134.12,1.0093242]
[1642580756676,3.232,134.13,134.12,1.0093242]
[1642580757278,20.4199,134.13,134.12,1.0093242]
[1642580757780,20.4199,134.13,134.08,44.3213192]
[1642580757978,20.1699,134.13,134.08,44.3213192]
[1642580758382,11.4388,134.12,134.08,44.3213192]
[1642580758580,2.982,134.11,134.08,44.3213192]
[1642580758979,3.03219997,134.1,134.08,44.3213192]
[1642580761083,2.983,134.12,134.08,1.00432722]
[1642580761489,11.4397,134.11,134.08,1.00432722]
[1642580761684,6.01419997,134.1,134.08,1.00432722]
[1642580762487,6.01419997,134.1,134.07,0.02]
[1642580762686,17.20429997,134.1,134.07,0.02]
[1642580764089,17.20429997,134.1,134.01,146.23976335]
[1642580764090,0.30391224,134.08,134.01,146.23976335]
[1642580764287,3.89592699,134.03,134.01,139.95945865]
[1642580764490,35.0,134.0,133.94,14.830578]
[1642580764688,27.0227972,133.99,133.94,14.830578]
[1642580764889,10.74,133.99,133.95,2.985]
[1642580765091,3.89592699,134.03,133.95,2.985]
[1642580765289,3.89592699,134.03,133.92,8.0128]
[1642580765493,36.725,134.02,133.92,8.0128]
[1642580765890,37.3392,134.0,133.92,44.24789819]
[1642580766190,14.1868,133.99,133.92,44.24789819]
[1642580766391,11.2018,133.99,133.92,44.24789819]
[1642580766590,2.986,133.98,133.92,44.24789819]
[1642580766794,19.976,133.98,133.92,44.24789819]
[1642580766991,37.338,134.0,133.92,44.24789819]
[1642580767192,11.2,133.99,133.92,44.24789819]
[1642580767496,11.2,133.99,133.93,6.0]
[1642580767791,11.2,133.99,133.94,0.25]
[1642580767995,11.2,133.99,133.93,0.25]
[1642580768193,20.90167171,134.07,133.95,71.0]
[1642580768393,2.985,134.12,133.99,1.6226203]
[1642580768595,2.985,134.12,134.0,10.74]
[1642580768792,2.09875284,134.15,134.0,27.22292941]
[1642580768793,11.1911,134.13,134.0,27.22292941]
[1642580768994,2.983,134.12,134.01,54.0652]
[1642580769193,47.36757973,134.15,134.02,31.80575395]
[1642580769393,47.36757973,134.15,134.02,54.16431589]
[1642580769593,47.36757973,134.15,134.03,26.73594164]
[1642580769793,47.36757973,134.15,134.04,10.99]
[1642580769996,2.983,134.15,134.04,35.6284286]
[1642580770194,2.983,134.15,134.05,1.6226203]
[1642580770395,2.983,134.15,134.06,10.74]
[1642580770600,2.982,134.16,134.06,34.0058083]
[1642580770797,2.982,134.16,134.07,1.6226203]
[1642580770996,1.61051386,134.17,134.08,20.27267388]
[1642580771207,1.61051386,134.17,134.08,40.55648218]
[1642580771402,1.61051386,134.17,134.09,1.6226203]
[1642580771603,1.61051386,134.17,134.1,10.74]
[1642580771902,1.61051386,134.17,134.11,5.74953967]
[1642580772103,1.61051386,134.17,134.12,10.74]
[1642580772306,1.61051386,134.17,134.12,13.971]
[1642580772703,1.61051386,134.17,134.13,1.6226203]
[1642580772902,1.61051386,134.17,134.14,10.74]
[1642580773106,1.61051386,134.17,134.15,1.44278816]
[1642580775708,1.61051386,134.17,134.16,32.25]
[1642580776304,1.61051386,134.17,134.16,42.99]
[1642580776504,2.981,134.23,134.16,42.99]
[1642580776704,2.98,134.24,134.16,44.6126203]
[1642580776905,2.98,134.24,134.19,11.1768]
[1642580777105,5.07875284,134.27,134.2,10.74]
[1642580777307,2.98,134.27,134.2,10.74]
[1642580777521,48.26037741,134.27,134.2,10.74]
[1642580778225,0.25,134.26,134.2,10.74]
[1642580778422,2.979,134.25,134.2,10.74]
[1642580779122,0.25,134.24,134.2,10.74]
[1642580779726,45.63588791,134.24,134.2,10.74]
[1642580780327,2.98,134.23,134.2,10.74]
[1642580780733,0.25,134.22,134.2,10.74]
[1642580780928,48.88230971,134.21,134.2,10.74]
[1642580781128,60.06620971,134.21,134.2,10.74]
[1642580781327,60.31620971,134.21,134.14,134.24]
[1642580781529,6.25,134.2,134.15,10.74]
[1642580781725,6.25,134.2,134.12,2.98]
[1642580781726,2.981,134.19,134.13,10.74]
[1642580781927,2.981,134.19,134.12,2.98]
[1642580782126,6.25,134.18,134.12,2.98]
[1642580782329,38.45456059,134.17,134.12,2.98]
[1642580782530,6.0,134.16,134.12,2.98]
[1642580782731,2.981,134.15,134.12,2.98]
[1642580783029,6.06439994,134.14,134.12,2.98]
[1642580783231,2.982,134.13,134.12,2.98]
[1642580783628,44.95704862,134.13,134.12,2.98]
[1642580784430,2.982,134.13,134.12,2.98]
[1642580784631,6.06439994,134.14,134.12,36.0]
[1642580784831,2.982,134.17,134.12,36.25]
[1642580785035,6.0,134.16,134.13,0.25]
[1642580785234,6.0,134.16,134.1,10.74]
[1642580785434,8.982,134.17,134.1,10.74]
[1642580785634,2.982,134.17,134.1,10.74]
[1642580786035,0.25,134.16,134.1,10.74]
[1642580786238,2.982,134.15,134.1,10.74]
[1642580786436,47.55958975,134.14,134.1,10.74]
[1642580786639,6.0,134.13,134.03,2.982]
[1642580786837,8.982,134.13,134.0,2.982]
[1642580787038,10.99,134.12,133.98,2.983]
[1642580787237,2.983,134.11,133.98,2.983]
[1642580787437,8.983,134.11,133.98,2.983]
[1642580787636,48.6332805,134.1,133.99,12.83150795]
[1642580787838,14.1783,134.09,133.99,24.02490795]
[1642580788038,20.1783,134.09,133.99,24.02490795]
[1642580788240,0.25,134.08,134.0,0.25]
[1642580788441,2.984,134.07,134.0,0.25]
[1642580789039,2.984,134.07,134.0,11.4432]
[1642580789241,2.984,134.11,134.01,87.754]
[1642580789440,2.984,134.12,134.01,87.754]
[1642580789640,6.0,134.11,134.02,6.25]
[1642580789852,6.0,134.11,134.03,8.08381988]
[1642580790038,6.0,134.13,134.04,10.74]
[1642580790238,6.0,134.13,134.06,12.83150795]
[1642580790439,11.1878,134.13,134.06,24.01910795]
[1642580790638,11.1878,134.13,134.07,0.25]
[1642580790839,40.2761,134.16,134.07,0.25]
[1642580791043,2.982,134.16,134.07,0.25]
[1642580791240,0.25,134.15,134.06,12.83150795]
[1642580791442,2.982,134.14,134.06,12.83150795]
[1642580791840,11.1879,134.13,134.07,11.1874]
[1642580792644,11.1879,134.13,134.08,0.25]
[1642580792844,2.982,134.12,134.08,0.25]
[1642580793243,2.982,134.12,134.07,11.1874]
[1642580793444,11.1879,134.13,134.08,0.25]
[1642580794244,0.25,134.12,134.05,23.1214]
[1642580794446,11.1907,134.1,134.02,17.932]
[1642580794644,2.983,134.09,134.02,8.95]
[1642580794844,3.233,134.09,134.02,8.95]
[1642580795045,0.25,134.09,134.02,8.95]
[1642580795244,2.983,134.08,134.02,8.95]
[1642580795444,14.1748,134.08,133.96,2.983]
[1642580795646,0.25,134.07,133.99,8.95]
[1642580795845,0.25,134.07,133.97,8.95]
[1642580795846,2.984,134.06,133.97,8.95]
[1642580796250,0.25,134.05,133.97,8.95]
[1642580796447,0.25,134.05,133.98,14.29803742]
[1642580796648,14.1791,134.04,133.98,25.74303742]
[1642580797049,14.1791,134.04,133.97,8.95]
[1642580797247,0.25,134.03,133.95,8.984]
[1642580797452,2.985,134.02,133.95,8.984]
[1642580797851,11.1992,134.0,133.95,2.984]
[1642580798050,2.985,133.99,133.95,2.984]
[1642580799451,14.1844,133.99,133.93,11.1989]
[1642580799654,11.1994,133.99,133.92,31.8151]
[1642580799953,2.986,133.98,133.92,8.9501]
[1642580800150,0.25,133.99,133.92,8.9501]
[1642580800352,2.986,133.98,133.92,8.9501]
[1642580800553,11.2002,133.98,133.92,0.0001]
[1642580800751,9.236,133.97,133.92,0.0001]
[1642580800952,6.25,133.97,133.92,0.0001]
[1642580801152,2.986,133.96,133.92,0.0001]
[1642580801953,2.986,133.99,133.92,0.0001]
[1642580802753,11.1982,134.01,133.93,2.986]
[1642580803152,11.1982,134.01,133.94,0.25]
[1642580803353,11.1982,134.01,133.94,3.86592618]
[1642580804383,14.1832,134.01,133.94,3.86592618]
[1642580804984,11.1982,134.01,133.94,3.86592618]
[1642580805182,2.985,134.0,133.94,0.25]
[1642580805384,14.1836,134.0,133.92,0.0001]
[1642580805583,11.1986,134.0,133.92,0.2501]
[1642580805882,2.985,133.99,133.92,0.0001]
[1642580806086,2.985,134.02,133.92,0.0001]
[1642580806281,9.235,134.02,133.92,16.73550813]
[1642580806486,20.4324,134.02,133.93,11.1988]
[1642580806784,14.1824,134.02,133.93,11.1988]
[1642580806983,2.985,134.04,133.94,8.95]
[1642580807283,2.985,134.04,133.95,1.1969197]
[1642580807482,2.985,134.04,133.96,8.95]
[1642580807683,2.985,134.04,133.96,9.2]
[1642580807884,2.985,134.04,133.96,0.25]
[1642580808083,42.2082641,134.03,133.94,2.4469197]
[1642580808283,2.985,134.02,133.94,37.3164]
[1642580809286,2.985,134.02,133.96,11.1961]
[1642580810389,39.09991549,134.0,133.92,0.0001]
[1642580810685,2.985,133.99,133.92,0.0001]
[1642580810886,42.08591549,134.0,133.92,0.0001]
[1642580811086,39.09991549,134.0,133.92,74.0301]
[1642580811285,39.09991549,134.0,133.92,80.0301]
[1642580811485,39.09991549,134.0,133.93,11.1975]
[1642580811688,2.985,133.99,133.93,11.4475]
[1642580812487,2.985,133.99,133.93,11.1975]
[1642580812786,2.985,133.99,133.94,0.25]
[1642580812986,39.09991549,134.0,133.94,0.25]
[1642580813388,42.08491549,134.0,133.92,0.0001]
[1642580813587,0.25,133.99,133.92,0.0001]
[1642580813788,2.986,133.98,133.92,0.0001]
[1642580814193,0.25,133.97,133.92,0.0001]
[1642580814388,11.2017,133.96,133.92,0.0001]
[1642580814587,14.1877,133.96,133.92,0.0001]
[1642580817390,2.986,133.96,133.92,0.0001]
[1642580817889,2.986,133.99,133.92,0.0001]
[1642580818090,2.985,134.01,133.92,0.0001]
[1642580818290,3.235,134.01,133.92,0.0001]
[1642580818491,48.39968012,134.0,133.92,2.9851]
[1642580818693,2.985,133.99,133.93,0.25]
[1642580819093,2.985,133.99,133.93,11.4477]
[1642580819492,2.985,134.0,133.93,11.4477]
[1642580819694,2.985,134.01,133.94,2.985]
[1642580819894,2.985,134.03,133.94,2.985]
[1642580820093,2.985,134.04,133.95,0.25]
[1642580820294,35.22487544,134.03,133.95,0.25]
[1642580820599,2.985,134.02,133.95,0.25]
[1642580820795,3.235,134.02,133.95,0.25]
[1642580821196,3.235,134.02,133.93,0.25]
[1642580821396,3.235,134.02,133.92,2.9851]
[1642580821598,16.2056939,134.02,133.92,2.9851]
[1642580821998,6.0,134.01,133.92,2.9851]
[1642580822196,44.5542911,134.0,133.92,2.9851]
[1642580822598,6.0,133.99,133.93,0.25]
[1642580822897,6.0,133.99,133.92,2.9851]
[1642580823097,2.986,133.98,133.92,2.9851]
[1642580823298,2.986,133.98,133.92,0.0001]
[1642580824301,6.0,133.99,133.93,2.986]
[1642580824797,6.0,133.99,133.94,0.25]
[1642580825301,14.98,134.01,133.95,2.985]
[1642580825497,14.98,134.01,133.95,11.935]
[1642580825698,14.98,134.01,133.96,0.25]
[1642580825998,14.98,134.01,133.97,11.935]
[1642580826197,14.98,134.01,133.98,0.25]
[1642580827299,14.98,134.01,133.97,2.985]
[1642580827498,9.04939994,134.0,133.97,2.985]
[1642580829299,68.57796696,134.0,133.97,2.985]
[1642580830099,20.24799994,134.0,133.97,2.985]
[1642580830300,9.04939994,134.0,133.97,2.985]
[1642580830899,6.06439994,134.0,133.93,2.985]
[1642580831099,6.06439994,134.0,133.94,12.77606792]
[1642580831299,6.06439994,134.0,133.95,11.4462]
[1642580831501,3.03219997,134.0,133.95,13.30301994]
[1642580831702,14.98,134.01,133.95,13.30301994]
[1642580832007,14.98,134.01,133.94,11.05681994]
[1642580832202,14.98,134.01,133.94,8.95]
[1642580832400,2.985,134.0,133.94,8.95]
[1642580832600,3.235,134.0,133.92,2.10691994]
[1642580832802,3.235,134.0,133.92,0.0001]
[1642580833001,43.89361805,133.99,133.92,0.0001]
[1642580833201,3.236,133.98,133.92,0.0001]
[1642580833601,14.4366,133.98,133.92,0.0001]
[1642580834811,14.4366,133.98,133.92,0.2501]
[1642580836809,14.4366,133.98,133.92,0.0001]
[1642580839512,6.0,133.97,133.92,0.0001]
[1642580839716,14.4406,133.96,133.92,0.0001]
[1642580840110,6.0,133.95,133.92,0.0001]
[1642580840311,9.30039994,133.94,133.92,0.0001]
[1642580840510,32.0,133.93,133.92,0.0001]
[1642580840711,32.25,133.93,133.92,0.0001]
[1642580841011,0.25,133.93,133.92,0.0001]
[1642580841211,6.06439994,133.94,133.92,0.0001]
[1642580841618,29.986,133.93,133.92,0.0001]
[1642580842010,2.986,133.93,133.92,0.0001]
[1642580842213,14.1935,133.93,133.92,0.0001]
[1642580842611,14.4435,133.93,133.92,0.0001]
[1642580843915,45.4435,133.93,133.92,0.0001]
[1642580844114,51.4435,133.93,133.92,0.0001]
[1642580844314,32.0,133.92,133.87,100.0]
[1642580844516,20.1955,133.91,133.87,100.0]
[1642580844718,20.4455,133.91,133.87,100.0]
[1642580845417,39.12503851,133.9,133.87,100.0]
[1642580845619,8.987,133.89,133.87,100.0]
[1642580845819,63.95,133.88,133.84,0.02952969]
[1642580846020,63.95,133.88,133.78,15.0]
[1642580846021,3.75047031,133.8,133.78,15.0]
[1642580848622,3.75047031,133.8,133.78,30.12346281]
[1642580849425,14.95,133.87,133.79,74.03]
[1642580849426,8.95,133.87,133.79,74.03]
[1642580849625,20.1568,133.9,133.81,11.2086]
[1642580849828,2.988,133.92,133.82,27.7637]
[1642580850025,2.988,133.93,133.82,27.7637]
[1642580850425,2.988,133.93,133.83,9.07227501]
[1642580850625,2.988,133.93,133.83,15.07227501]
[1642580851028,14.193,133.93,133.84,11.2058]
[1642580851227,73.07522379,133.96,133.84,14.4428]
[1642580851228,2.987,133.95,133.84,14.4428]
[1642580851428,2.987,133.95,133.84,23.3928]
[1642580851629,2.987,133.95,133.84,97.4228]
[1642580852031,47.87850614,133.95,133.84,97.4228]
[1642580852461,11.2034,133.94,133.87,11.2037]
[1642580852860,11.2034,133.94,133.88,0.25]
[1642580853260,11.2034,133.94,133.85,6.0]
[1642580853461,11.2052,133.92,133.85,6.0]
[1642580853665,11.2052,133.92,133.84,14.1926]
[1642580853962,2.987,133.91,133.84,14.1926]
[1642580854161,52.14554172,133.91,133.85,0.25]
[1642580854362,49.15854172,133.91,133.84,14.1926]
[1642580854663,2.987,133.9,133.83,11.207]
[1642580854861,2.987,133.9,133.83,11.457]
[1642580855665,2.988,133.92,133.83,14.445]
[1642580856262,11.207,133.9,133.83,13.445]
[1642580856463,2.988,133.89,133.83,10.457]
[1642580857271,2.988,133.89,133.83,10.207]
[1642580857464,11.2077,133.89,133.83,10.207]
[1642580857668,2.988,133.88,133.82,24.5257]
[1642580857868,11.2077,133.89,133.83,0.25]
[1642580858067,11.2077,133.89,133.8,26.4788]
[1642580858369,47.82913135,133.88,133.81,0.25]
[1642580858566,11.2099,133.87,133.81,0.25]
[1642580858768,11.2099,133.87,133.8,23.4908]
[1642580858769,14.1979,133.87,133.8,23.4908]
[1642580859566,11.2083,133.89,133.8,23.4908]
[1642580859764,11.2083,133.89,133.81,2.988]
[1642580860369,11.2083,133.89,133.81,13.00931364]
[1642580860765,11.2083,133.89,133.82,0.25]
[1642580860966,14.197,133.88,133.82,0.25]
[1642580861166,0.25,133.87,133.79,2.988]
[1642580861367,3.238,133.87,133.78,26.2108]
[1642580861666,2.988,133.87,133.79,2.988]
[1642580861865,2.988,133.87,133.78,29.1988]
[1642580862065,2.988,133.88,133.79,11.91278255]
[1642580862266,2.988,133.88,133.79,23.12268255]
[1642580862467,2.988,133.88,133.8,0.25]
[1642580862668,2.988,133.9,133.8,0.25]
[1642580862870,8.988,133.9,133.8,0.25]
[1642580863569,11.2091,133.88,133.82,1.07215527]
[1642580865071,11.2091,133.88,133.8,0.25]
[1642580865268,11.2091,133.88,133.8,11.4597]
[1642580865471,11.2091,133.88,133.8,17.4597]
[1642580866068,11.2091,133.88,133.81,12.60684175]
[1642580866268,11.2091,133.88,133.82,0.25]
[1642580866670,2.988,133.9,133.82,0.25]
[1642580866873,2.988,133.92,133.83,2.988]
[1642580867069,2.987,133.96,133.83,2.988]
[1642580867270,2.987,133.96,133.84,24.878]
[1642580867468,45.65032378,133.95,133.85,0.37809607]
[1642580867668,11.2043,133.93,133.83,2.988]
[1642580867870,2.987,133.92,133.83,2.988]
[1642580868271,2.987,133.93,133.83,2.988]
[1642580868673,50.56523553,133.92,133.83,2.988]
[1642580868876,2.987,133.91,133.83,2.988]
[1642580869271,43.4449691,133.89,133.83,2.988]
[1642580869473,2.988,133.88,133.83,2.988]
[1642580869672,2.988,133.88,133.82,6.0]
[1642580870072,2.988,133.88,133.81,6.0]
[1642580870472,2.988,133.88,133.8,6.0]
[1642580870675,0.25,133.87,133.8,6.0]
[1642580870874,2.988,133.86,133.79,24.4351]
[1642580871075,11.2116,133.85,133.79,24.4351]
[1642580871574,11.2116,133.85,133.78,17.988]
[1642580871973,11.2116,133.85,133.78,29.1995]
[1642580872475,11.2116,133.85,133.78,31.30631994]
[1642580872675,11.2116,133.85,133.78,28.31831994]
[1642580873075,11.21,133.87,133.79,10.2366822]
[1642580873277,2.988,133.86,133.8,11.2097]
[1642580873674,2.988,133.86,133.8,10.44515911]
[1642580876283,2.988,133.86,133.81,0.25]
[1642580876477,14.198,133.87,133.8,10.44515911]
[1642580877182,14.198,133.87,133.78,28.31761994]
[1642580877380,0.25,133.86,133.78,15.0]
[1642580877579,11.2138,133.84,133.78,15.0]
[1642580877780,2.989,133.83,133.78,15.0]
[1642580878288,40.3681,133.85,133.78,15.0]
[1642580878483,11.2127,133.83,133.78,15.0]
[1642580880889,11.2127,133.83,133.78,14.9]
[1642580881992,11.2127,133.83,133.78,17.00681994]
[1642580882785,11.2118,133.84,133.78,17.00681994]
[1642580882985,2.989,133.86,133.79,3.56432535]
[1642580883185,40.3561,133.89,133.79,3.81432535]
[1642580883388,40.3561,133.89,133.79,29.00014529]
[1642580884087,46.8669651,133.88,133.79,29.00014529]
[1642580884290,11.2101,133.86,133.79,40.21094529]
[1642580885389,11.2101,133.86,133.8,2.10681994]
[1642580886617,11.2101,133.86,133.8,13.65669073]
[1642580887316,2.988,133.87,133.81,0.25]
[1642580887517,2.988,133.89,133.81,5.34481994]
[1642580887717,2.988,133.93,133.82,25.63471994]
[1642580887916,2.988,133.93,133.84,2.10681994]
[1642580888116,2.09875284,133.96,133.84,11.07681994]
[1642580888117,47.98472184,133.95,133.84,11.07681994]
[1642580888316,47.98472184,133.95,133.85,1.68506703]
[1642580888519,2.987,133.94,133.85,1.68506703]
[1642580889416,11.2053,133.93,133.85,12.89036703]
[1642580890017,11.2053,133.93,133.85,11.4553]
[1642580890819,14.1906,133.94,133.85,11.4553]
[1642580891022,2.987,133.96,133.86,2.987]
[1642580891218,1.25022497,133.97,133.86,2.987]
[1642580891219,1.25022497,133.97,133.89,11.202]
[1642580891421,4.23622497,133.97,133.89,11.202]
[1642580891622,49.75249302,133.97,133.9,0.25]
[1642580892322,60.95449302,133.97,133.9,0.25]
[1642580892821,60.95449302,133.97,133.88,14.1887]
[1642580893023,2.986,133.96,133.88,14.1887]
[1642580893219,2.986,133.96,133.89,0.25]
[1642580893420,11.2034,133.95,133.89,11.4525]
[1642580895530,41.01176595,133.94,133.89,11.4525]
[1642580895729,41.01176595,133.94,133.89,0.25]
[1642580896531,11.2034,133.95,133.89,0.25]
[1642580898534,11.2034,133.95,133.89,11.4524]
[1642580898736,11.2034,133.95,133.9,0.25]
[1642580899936,11.2034,133.95,133.89,11.2024]
[1642580900136,14.1882,133.96,133.89,11.2024]
[1642580900337,2.986,133.99,133.9,3.236]
[1642580900538,2.986,134.0,133.92,11.199]
[1642580900739,2.986,134.0,133.93,0.25]
[1642580901039,2.986,134.0,133.9,26.1599]
[1642580901239,11.2012,133.98,133.91,0.25]
[1642580901439,14.1872,133.98,133.91,0.25]
[1642580908753,14.1851,134.0,133.91,11.45]
[1642580908955,17.965,134.01,133.91,13.07580423]
[1642580909149,14.98,134.01,133.92,2.985]